[Event "SixDays Budapest January-IMB 2023"]
[Site "Budapest"]
[Date "2023.01.26"]
[Round "6.5"]
[White "Urhegyi, Marton"]
[Black "La Barbera, Manfredi"]
[Result "1-0"]
[ECO "C01"]
[WhiteElo "2253"]
[BlackElo "1961"]
[Annotator "TA"]
[PlyCount "53"]
[EventDate "2023.01.23"]
[EventType "tourn"]
[EventCountry "HUN"]
[SourceTitle "playchess.com"]
[Source "ChessBase"]
[SourceQuality "1"]
[TimeControl "5400+30"]

{[%evp 9,53,14,8,0,0,0,0,0,0,0,0,0,0,-13,4,8,13,11,10,0,0,0,0,0,0,-26,0,-12,0,-15,-21,-17,14,18,104,97,250,245,367,401,395,374,395,377,335,341]} 1. e4 {[%emt 0:00:30]} e6 {[%emt 0:00:10]} 2. d4 {[%emt 0:00:10]} d5 {[%emt 0:00:10]} 3. exd5 {[%emt 0:00:18]} exd5 {[%emt 0:00:10]} 4. Nf3 {[%emt 0:00:10]} Nc6 {[%emt 0:00:41][%cal Bb8c6,Bc6b4,Bb4c6][%mdl 32]} 5. Bd3 {[%emt 0:01:14]} Nb4 {[%emt 0:00:11]} 6. Be2 {[%emt 0:02:39] C01: French: Exchange Variation.} Bf5 {[%emt 0:00:11]} 7. Na3 {[%emt 0:00:43]} Nc6 {[%emt 0:00:16]} 8. O-O {[%emt 0:01:30] The position is equal.} Bxa3 {[%emt 0:04:39]} 9. bxa3 {[%emt 0:00:04]} Nf6 {[%emt 0:12:32]} 10. Rb1 {[%emt 0:04:31]} Rb8 {[%emt 0:00:28]} 11. Ne5 {[%emt 0:03:42]} O-O {[%emt 0:23:06] [#]} 12. Nxc6 $146 {[%emt 0:04:29]} ({Predecessor:} 12. Rb3 Re8 13. Bf4 Nxe5 14. Bxe5 Ne4 15. c4 dxc4 16. Bxc4 Rxe5 17. dxe5 Nd2 18. Rf3 {0-1 Seferjan,N (2275)-Castaneda,G (2375) Pripis Memorial 1997 (4)}) 12... bxc6 {[%emt 0:00:06]} 13. Rb3 {[%emt 0:05:50]} Ne4 {[%emt 0:08:13]} 14. f3 {[%emt 0:07:32]} Nd6 {[%emt 0:01:00]} 15. a4 {[%emt 0:06:00]} Re8 {[%emt 0:16:10]} 16. Rf2 {[%emt 0:17:03]} Qf6 {[%emt 0:04:48]} 17. Ba3 {[%emt 0:08:57]} Qg6 {[%emt 0:11:42]} 18. Rc3 {[%emt 0:06:14]} Bd7 {[%emt 0:00:18]} 19. Bf1 {[%emt 0:03:16]} h6 {[%emt 0:01:07]} 20. Rb3 {[%emt 0:04:03]} Nf5 {[%emt 0:03:07]} 21. Qd2 {[%emt 0:06:39]} Rxb3 {[%emt 0:03:14]} (21... Ra8 $11) 22. axb3 $16 {[%emt 0:02:17]} Ne3 $2 {[%emt 0:00:50] [#] This costs Black the game.} (22... Qg5 $16 {was worth a try.}) 23. Bd3 $18 {[%emt 0:01:00]} Bf5 {[%emt 0:00:58]} (23... Qf6 {keeps fighting.} 24. Bc5 Nf5 25. Bxa7 g6) 24. Re2 {[%emt 0:01:43]} Bxd3 {[%emt 0:00:27]} 25. cxd3 {[%emt 0:00:45]} ({Weaker is} 25. Qxd3 Qxd3 26. cxd3 f5 $16) 25... Qf6 {[%emt 0:01:18]} 26. Rxe3 {[%emt 0:01:37]} Qxd4 {[%emt 0:00:04]} 27. Bc1 {[%emt 0:01:26] Weighted Error Value: White=0.04 (flawless) /Black=0.26 (precise)} 1-0

[Event "SixDays Budapest January-IMB 2023"]
[Site "Budapest"]
[Date "2023.01.27"]
[Round "7.1"]
[White "La Barbera, Manfredi"]
[Black "Daroczi, Donat"]
[Result "1-0"]
[ECO "B56"]
[WhiteElo "1961"]
[BlackElo "2148"]
[Annotator "TA"]
[PlyCount "55"]
[EventDate "2023.01.23"]
[EventType "tourn"]
[EventCountry "HUN"]
[SourceTitle "playchess.com"]
[Source "ChessBase"]
[SourceQuality "1"]
[TimeControl "5400+30"]

{[%evp 10,55,50,42,45,44,56,51,89,71,79,54,54,56,62,58,61,55,51,61,93,0,114,109,126,120,137,158,285,280,431,180,386,381,670,687,1340,1318,1404,1246,1853,1815,1775,1728,1608,1329,1267,1245]} 1. e4 {[%emt 0:00:04]} c5 {[%emt 0:01:58]} 2. Nf3 {[%emt 0:00:17]} d6 {[%emt 0:00:22]} 3. d4 {[%emt 0:00:13]} cxd4 {[%emt 0:00:21]} 4. Nxd4 {[%emt 0:00:16]} Nf6 {[%emt 0:00:05]} 5. Nc3 {[%emt 0:00:15]} Bd7 {[%emt 0:00:08]} 6. Be2 {[%emt 0:00:24]} g6 {[%emt 0:00:36] B56: Classical Sicilian: Unusual Lines.} 7. Be3 {[%emt 0:01:19]} Nc6 {[%emt 0:00:54]} 8. f3 {[%emt 0:05:28]} Rc8 {[%emt 0:07:09] White is slightly better.} 9. Qd2 {[%emt 0:07:36]} h5 {[%emt 0:01:21]} 10. h3 {[%emt 0:10:44] [#]} Bg7 $146 {[%emt 0:09:55]} ({Predecessor:} 10... a6 11. a4 Bg7 12. Nb3 Ne5 13. a5 Nc4 14. Bxc4 Rxc4 15. Rd1 Qc8 16. Bd4 O-O {1-0 Prokop,J-Koubkova,A Klatovy op-B 1994}) 11. O-O-O {[%emt 0:04:45]} h4 {[%emt 0:02:38]} 12. Kb1 {[%emt 0:02:27]} Nh5 {[%emt 0:12:34]} 13. Nxc6 {[%emt 0:15:43]} bxc6 {[%emt 0:08:00]} 14. Bd4 {[%emt 0:03:38]} f6 {[%emt 0:07:20]} 15. Rhe1 {[%emt 0:10:23] White is more active.} ({But not} 15. Bxa7 Qa5 16. Bf2 Be6 $11) (15. Bc4 $16) 15... Be6 {[%emt 0:10:15] [#]} (15... Bh6 $1 $11 {remains equal.} 16. Be3 Bxe3 17. Qxe3 Qb6) 16. f4 $1 $36 {[%emt 0:09:53][%mdl 2048] Keeping Black busy.} ({Don't play} 16. Bxa7 Qa5 17. Bd4 Bh6 $11) 16... Qa5 {[%emt 0:06:23]} 17. Bg4 {[%emt 0:13:15]} Bxg4 {[%emt 0:07:06]} 18. hxg4 {[%emt 0:00:02]} Ng3 {[%emt 0:00:05]} (18... Nxf4 $16 {might work better.} 19. Qxf4 e5) 19. Qd3 {[%emt 0:03:35][%cal Od4f6] Threatens to win with Bxf6!} c5 {[%emt 0:12:09]} (19... Qc7 $142 20. e5 Kf7 21. exd6 exd6) 20. Bf2 {[%emt 0:03:43]} (20. e5 $142 dxe5 21. Bf2) 20... Rb8 $2 {[%emt 0:02:50]} (20... c4 21. Qd4 Kf7) 21. e5 {[%emt 0:01:50][%mdl 64] [#] Discovered Attack} Qb4 $2 {[%emt 0:00:33]} (21... f5 22. Bxg3 hxg3 23. gxf5 gxf5) 22. b3 $18 {[%emt 0:00:45] White is clearly winning.} (22. exd6 $2 Qxb2#) 22... O-O {[%emt 0:05:25]} 23. Nd5 {[%emt 0:00:47][%cal Bc3d5,Bd5e7,Be7g6][%mdl 32]} Qb7 {[%emt 0:00:00] Black is weak on the light squares} 24. exf6 {[%emt 0:00:26]} exf6 {[%emt 0:00:27]} 25. Ne7+ {[%emt 0:00:08][%mdl 64] Discovered Attack} Kh8 {[%emt 0:00:18]} 26. Nxg6+ {[%emt 0:00:08]} Kg8 {[%emt 0:00:03]} 27. Ne7+ {[%emt 0:00:13]} Kh8 {[%emt 0:00:04]} 28. Bxg3 {[%emt 0:00:31] Weighted Error Value: White=0.26 (precise) /Black=0.79} 1-0

[Event "SixDays Budapest January-IMB 2023"]
[Site "Budapest"]
[Date "2023.01.27"]
[Round "7.2"]
[White "Gatineau, Yovann"]
[Black "Urhegyi, Marton"]
[Result "1-0"]
[ECO "A45"]
[WhiteElo "2354"]
[BlackElo "2253"]
[Annotator "TA"]
[PlyCount "129"]
[EventDate "2023.01.23"]
[EventType "tourn"]
[EventCountry "HUN"]
[SourceTitle "playchess.com"]
[Source "ChessBase"]
[SourceQuality "1"]
[TimeControl "5400+30"]

{[%evp 9,129,8,10,0,-3,-12,-8,0,2,2,8,0,8,9,12,0,7,8,5,0,0,0,14,0,-7,-13,20,15,23,19,22,13,24,15,35,36,23,18,27,22,26,31,34,17,18,8,12,50,60,0,0,0,0,0,0,0,0,0,-7,-8,14,0,0,0,0,0,0,0,0,0,0,0,21,21,35,36,36,54,151,0,150,150,158,158,158,150,158,165,158,158,156,162,779,416,900,817,650,412,1852,1581,1001,1172,983,806,29976,29972,29969,29971,29975,29975,29975,29976,29976,29973,29973,29974,29973,29972,29985,29986,29986,29987]} 1. d4 {[%emt 0:06:18]} Nf6 {[%emt 0:00:20]} 2. Bf4 {[%emt 0:00:39]} d5 {[%emt 0:00:58]} 3. e3 {[%emt 0:00:19]} c5 {[%emt 0:00:44]} 4. Nc3 {[%emt 0:00:08]} Bg4 {[%emt 0:00:54]} 5. f3 {[%emt 0:05:17]} Bd7 {[%emt 0:00:07]} 6. Nb5 {[%emt 0:00:30] D00: 1 d4 d5: Unusual lines.} Bxb5 {[%emt 0:02:12]} 7. Bxb5+ {[%emt 0:00:07]} Nc6 {[%emt 0:00:19]} 8. c3 {[%emt 0:00:08] The position is equal.} (8. dxc5 $2 Qa5+ 9. c3 Qxb5 $19) 8... cxd4 {[%emt 0:08:48]} 9. exd4 {[%emt 0:00:07]} e6 {[%emt 0:00:33]} 10. Ne2 {[%emt 0:01:48]} Rc8 {[%emt 0:04:51]} 11. O-O {[%emt 0:05:23] [#]} Bd6 $146 {[%emt 0:01:15]} ({Predecessor:} 11... Be7 12. Bd3 O-O 13. Kh1 Na5 14. g4 Nc4 15. Qc2 g6 16. b3 Nd6 17. h4 a6 {0-1 Kjartansson,D (2316)-Yuan,Q (2373) Titled Tuesday intern op 28th Jun Early blitz 2022 (6)}) 12. Re1 {[%emt 0:01:24]} Bxf4 {[%emt 0:02:51]} 13. Nxf4 {[%emt 0:00:08]} Qb6 {[%emt 0:01:00]} 14. Qe2 {[%emt 0:05:27][%cal Of4e6]} O-O {[%emt 0:01:49]} 15. Kh1 {[%emt 0:01:26]} Na5 {[%emt 0:04:54]} 16. Rac1 {[%emt 0:07:25][%cal Ba1c1,Bc1c2,Bc2e2][%mdl 32]} Nc4 {[%emt 0:08:57]} 17. Bxc4 {[%emt 0:01:21]} Rxc4 {[%emt 0:00:28]} 18. Nd3 {[%emt 0:04:20]} Rc7 {[%emt 0:02:16]} 19. Rc2 {[%emt 0:04:37]} Qd6 {[%emt 0:05:23]} 20. Qe3 {[%emt 0:01:24]} a5 {[%emt 0:04:30]} 21. a3 {[%emt 0:00:56]} Nd7 {[%emt 0:02:35]} 22. Rce2 {[%emt 0:01:53]} b5 {[%emt 0:03:38]} 23. Qg5 {[%emt 0:05:04]} Nb8 {[%emt 0:16:56]} 24. f4 {[%emt 0:02:29]} h6 {[%emt 0:00:36]} 25. Qh4 {[%emt 0:02:53]} Nd7 {[%emt 0:03:20]} 26. g4 {[%emt 0:03:39]} b4 $1 {[%emt 0:03:28]} 27. axb4 {[%emt 0:10:01]} axb4 {[%emt 0:00:07]} 28. g5 {[%emt 0:01:19]} bxc3 {[%emt 0:03:07]} 29. gxh6 {[%emt 0:01:55]} (29. bxc3 $14 Rxc3 30. gxh6) 29... g6 $11 {[%emt 0:01:00]} 30. Ne5 {[%emt 0:06:17]} Kh7 $1 {[%emt 0:06:10]} (30... c2 $2 31. Nxd7 f6 32. Nxf8 Qxf8 33. Rc1 $18 (33. Rxe6 c1=Q $16)) 31. bxc3 {[%emt 0:00:45] And now Nf3 would win.} Nxe5 {[%emt 0:01:07]} 32. Qf6 {[%emt 0:03:04][%csl Gh6][%cal Rf6g7]} Rg8 {[%emt 0:00:10] Prevents Qg7+.} 33. fxe5 {[%emt 0:00:57]} Qe7 {[%emt 0:00:35] ...Qxf6 is the strong threat.} 34. Qf4 {[%emt 0:02:16]} g5 {[%emt 0:08:26]} 35. Qg4 {[%emt 0:00:28]} Rxc3 {[%emt 0:02:10]} 36. Rf1 {[%emt 0:00:29]} Qc7 {[%emt 0:00:52]} (36... Kxh6 $2 37. Ref2 Rg6 38. Rxf7 $18) 37. Ref2 {[%emt 0:07:27]} Rc1 {[%emt 0:00:21]} 38. Qg1 {[%emt 0:00:25][%csl LRc1,LRf7]} Rxf1 {[%emt 0:00:45]} 39. Qxf1 {[%emt 0:00:01][%mdl 4096] Endgame KQR-KQR} (39. Rxf1 {simplifies} Rg6 40. Qf2 Rxh6 41. Qxf7+ Qxf7 42. Rxf7+ Kg8 43. Rf2) 39... Rf8 {[%emt 0:00:41]} 40. Rf6 {[%emt 0:01:55]} Qc2 {[%emt 0:00:39]} 41. Rxf7+ {[%emt 0:01:09]} Rxf7 {[%emt 0:00:02]} 42. Qxf7+ {[%emt 0:00:07]} Kxh6 {[%emt 0:00:15] White must now prevent ...Qe4+.} 43. Qxe6+ {[%emt 0:00:09] KQ-KQ} Kh5 {[%emt 0:00:54]} (43... Kg7 $1 $14) 44. Qh3+ $1 $16 {[%emt 0:01:30]} ({Inferior is} 44. Qxd5 Qd1+ 45. Kg2 Qd2+ 46. Kg3 Qf4+ 47. Kg2 Qd2+ 48. Kh3 Qf4 $11) 44... Kg6 {[%emt 0:00:08] Strongly threatening ...Qe4+.} 45. Qe3 {[%emt 0:01:44]} Qd1+ {[%emt 0:00:45]} 46. Kg2 {[%emt 0:00:04]} Qg4+ {[%emt 0:00:16]} 47. Kf2 {[%emt 0:00:15]} Qh4+ {[%emt 0:00:37] [#]} 48. Kg1 $1 {[%emt 0:00:09]} Qg4+ {[%emt 0:00:21]} 49. Kf1 {[%emt 0:00:09]} Qf5+ {[%emt 0:00:59] [#]} 50. Ke1 $1 {[%emt 0:00:12]} Qb1+ $2 {[%emt 0:00:45]} (50... Qc8 51. Kf2 Qh8) 51. Kf2 $18 {[%emt 0:00:05]} Qf5+ {[%emt 0:00:32]} (51... Qb8 $142 52. Qd3+ Kg7) 52. Kg3 {[%emt 0:00:18] Intending e6 and mate.} Qe6 {[%emt 0:00:32]} 53. Qa3 {[%emt 0:00:51]} Kh5 {[%emt 0:00:23]} (53... Qf5 $142 54. Qe3 Qc2) 54. Qf3+ {[%emt 0:00:36]} Kg6 {[%emt 0:00:05]} 55. Qf8 {[%emt 0:00:30] White threatens Qd6 and mate.} Kh5 {[%emt 0:00:50]} 56. h3 {[%emt 0:00:22]} Qc6 {[%emt 0:00:37]} 57. Qf7+ {White mates.} Kh6 {[%emt 0:00:08]} 58. Kg4 {[%emt 0:03:14]} Qc3 {[%emt 0:00:57]} 59. Qh5+ {[%emt 0:00:19][%mdl 64] Deflection} Kg7 {[%emt 0:00:01]} 60. Qxg5+ {[%emt 0:00:08]} ({Not} 60. Kxg5 Qd2+ 61. Kh4 Qf2+ 62. Kg4 (62. Kg5 Qd2+ 63. Kg4 Qe2+ 64. Kh4 Qf2+ 65. Kg4 Qe2+ 66. Kh4 Qf2+ $11) 62... Qe2+ 63. Kh4 Qf2+ 64. Kg4 (64. Kg5 Qd2+ 65. Kg4 Qe2+ 66. Kh4 Qf2+ $11) 64... Qg2+ 65. Kf4 Qh2+ 66. Kg5 Qd2+ 67. Kh4 Qf2+ $11) 60... Kh7 {[%emt 0:00:40]} 61. Qe7+ {[%emt 0:00:50]} Kh8 {[%emt 0:00:32]} 62. Qd8+ {[%emt 0:00:11]} Kh7 {[%emt 0:00:09]} 63. Qxd5 {[%emt 0:00:23]} Qe3 {[%emt 0:00:04]} 64. Qf7+ {[%emt 0:00:06]} Kh8 {[%emt 0:00:07]} 65. Qh5+ {[%emt 0:00:04] Weighted Error Value: White=0.08 (flawless) /Black=0.19 (very precise)} 1-0

[Event "SixDays Budapest January-IMB 2023"]
[Site "Budapest"]
[Date "2023.01.27"]
[Round "7.3"]
[White "Apol, Luitjen Akselsson"]
[Black "Semprun Martinez, Fernando"]
[Result "1-0"]
[ECO "B33"]
[WhiteElo "2215"]
[BlackElo "2106"]
[Annotator "TA"]
[PlyCount "67"]
[EventDate "2023.01.23"]
[EventType "tourn"]
[EventCountry "HUN"]
[SourceTitle "playchess.com"]
[Source "ChessBase"]
[SourceQuality "1"]
[TimeControl "5400+30"]

{[%evp 20,67,29,8,8,8,25,7,7,0,24,10,14,14,27,10,47,25,29,27,32,0,44,35,38,41,99,145,232,176,161,168,168,156,153,126,257,137,867,852,802,678,1247,1235,29985,29986,29995,29996,29997,29998]} 1. e4 {[%emt 0:09:13]} c5 {[%emt 0:00:44]} 2. Nf3 {[%emt 0:00:20][%cal Bg1f3,Bf3d4,Bd4b5,Bb5a3,Ba3c2][%mdl 32]} Nc6 {[%emt 0:00:02]} 3. d4 {[%emt 0:02:03]} cxd4 {[%emt 0:00:02]} 4. Nxd4 {[%emt 0:00:06]} Nf6 {[%emt 0:00:11]} 5. Nc3 {[%emt 0:00:04]} e5 {[%emt 0:00:05]} 6. Ndb5 {[%emt 0:00:04]} d6 {[%emt 0:00:07]} 7. Bg5 {[%emt 0:00:30]} a6 {[%emt 0:00:01]} 8. Na3 {[%emt 0:00:06]} b5 {[%emt 0:00:08]} 9. Nd5 {[%emt 0:00:19]} Be7 {[%emt 0:00:16]} 10. Bxf6 {[%emt 0:00:09]} Bxf6 {[%emt 0:00:08]} 11. c4 {[%emt 0:00:07]} b4 {[%emt 0:00:04] B33: Sicilian: Pelikan and Sveshnikov Variations.} 12. Nc2 {[%emt 0:00:04]} O-O {[%emt 0:00:03]} 13. g3 {[%emt 0:00:18]} a5 {[%emt 0:00:04] The position is equal.} 14. Bg2 {[%emt 0:01:34]} Be6 {[%emt 0:12:11] 14...g6 is the modern continuation.} 15. O-O {[%emt 0:02:31]} Bg5 {[%emt 0:03:57] 15...Bxd5 is vanishing.} (15... Bxd5 {simplifies} 16. cxd5 Nb8 17. Ne1 Na6) 16. Qd3 {[%emt 0:05:26]} Rc8 {[%emt 0:00:41]} 17. b3 {[%emt 0:00:36]} g6 {[%emt 0:06:16] [#]} 18. f4 $146 {[%emt 0:08:23]} ({Predecessor:} 18. Rad1 f5 19. Qe2 Ne7 20. exf5 gxf5 21. f4 Bxd5 22. Bxd5+ Nxd5 23. Rxd5 {1-0 Movsesian,J (2297)-Novikova,A (2287) RUS Cup tt Miass 2007 (4)}) 18... exf4 {[%emt 0:06:09]} 19. gxf4 {[%emt 0:00:16]} Bh6 {[%emt 0:00:37]} 20. Kh1 {[%emt 0:02:33]} f5 {[%emt 0:09:46]} 21. Rae1 {[%emt 0:03:27]} (21. Nce3 $5 {[%cal Re4f5]}) 21... Bg7 {[%emt 0:06:59]} 22. Nce3 {[%emt 0:03:25] A dynamic duo of knights.} Nd4 {[%emt 0:00:33]} (22... fxe4 $1 $14 23. Bxe4 Kh8) 23. exf5 $16 {[%emt 0:01:16]} Bxf5 {[%emt 0:07:26]} (23... Nxf5 $16 {was necessary.} 24. Nxf5 Bxf5) 24. Nxf5 {[%emt 0:01:02]} Nxf5 {[%emt 0:00:09]} 25. Bh3 {[%emt 0:03:12] [#] Black must now prevent Bxf5.} Rf7 {[%emt 0:01:34]} 26. Bxf5 {[%emt 0:06:13]} gxf5 {[%emt 0:00:01]} 27. Rg1 {[%emt 0:00:17] White has more active pieces.} Qh4 {[%emt 0:01:42]} (27... Kh8 $16 28. Rg2 Rb8) 28. Re3 {[%emt 0:01:49]} ({Don't do} 28. Re6 $6 Kh8 29. Rxd6 Re8 $18) (28. Qe3 $18 {Threatens to win with Ne7+.} Kh8 29. Rg5 (29. Qe6 Rcf8 $16)) 28... Kf8 {[%emt 0:03:48][%mdl 8192] [#] Wards off Ne7. Black cannot hold the game after this.} (28... Kh8 $16 29. h3 Rcf8) 29. Rxg7 $1 $18 {[%emt 0:04:23][%mdl 512]} Kxg7 {[%emt 0:01:10]} 30. Rg3+ {[%emt 0:00:06]} Kf8 {[%emt 0:00:35]} 31. Qd4 {[%emt 0:00:06][%cal Rd4h8]} Ke8 {[%emt 0:00:34]} 32. Re3+ {[%emt 0:00:12] White mates.} Kd8 {[%emt 0:00:55]} 33. Qb6+ {[%emt 0:01:51]} Rcc7 {[%emt 0:00:01]} 34. Qb8+ {[%emt 0:00:12] An entertaining game by Apol.   Weighted Error Value: White=0.20 (precise) /Black=0.45} 1-0

[Event "SixDays Budapest January-IMB 2023"]
[Site "Budapest"]
[Date "2023.01.27"]
[Round "7.5"]
[White "Papp, Levente"]
[Black "Jakab, Attila"]
[Result "0-1"]
[ECO "A13"]
[WhiteElo "2391"]
[BlackElo "2308"]
[Annotator "TA"]
[PlyCount "122"]
[EventDate "2023.01.23"]
[EventType "tourn"]
[EventCountry "HUN"]
[SourceTitle "playchess.com"]
[Source "ChessBase"]
[SourceQuality "1"]
[TimeControl "5400+30"]

{[%evp 14,122,18,15,84,81,79,0,0,0,0,-19,16,21,52,62,144,118,114,14,18,18,10,-25,-28,-40,-12,-54,-38,-43,0,-11,-20,-24,0,0,120,92,97,104,110,101,112,106,329,329,335,319,338,281,285,254,414,399,876,125,125,125,125,80,81,0,0,0,0,0,0,0,0,0,0,0,0,0,0,0,0,0,0,0,0,0,0,0,0,0,0,-3,0,-12,-5,-20,-21,-23,-23,-25,-31,-12842,-12843,-12844,-12844,-12845,-12845,-12847,-12847,-27999,-27999,-27999,-27999,-27999,-27999]} 1. c4 {[%emt 0:00:02]} e6 {[%emt 0:18:27]} 2. Nf3 {[%emt 0:00:20]} Nf6 {[%emt 0:01:16]} 3. g3 {[%emt 0:00:09]} b6 {[%emt 0:01:22]} 4. Bg2 {[%emt 0:00:09]} Bb7 {[%emt 0:00:03]} 5. O-O {[%emt 0:00:12]} Be7 {[%emt 0:00:03]} 6. d4 {[%emt 0:01:20][%cal Bd2d4,Bd4d5][%mdl 32]} O-O {[%emt 0:00:07]} 7. d5 {[%emt 0:00:03]} Na6 {[%emt 0:05:37]} 8. Nc3 {[%emt 0:04:13]} Nc5 {[%emt 0:00:09] E17: Queen's Indian: 4 g3 Bb7 5 Bg2 Be7.} (8... Bb4 $11) 9. Nd4 $16 {[%emt 0:29:51]} a5 {[%emt 0:01:01]} 10. f4 {[%emt 0:04:04]} (10. e4 $1 $16) 10... exd5 $11 {[%emt 0:05:51] The position is equal.} 11. cxd5 {[%emt 0:01:08] [#]} Re8 $146 {[%emt 0:00:08][%cal Oc7c6]} ({Predecessor:} 11... d6 12. e4 Ba6 13. Re1 Nfd7 14. Nc6 Qe8 15. e5 dxe5 16. fxe5 Nd3 17. Nxe7+ Qxe7 {0-1 Savurko,A (2138)-Borosova,Z (2222) Wch U18 Girls 2005 (7)}) 12. Re1 {[%emt 0:16:04] [#]} b5 $1 {[%emt 0:13:03]} 13. Ndxb5 {[%emt 0:07:38]} Nce4 {[%emt 0:00:25][%cal Oa8b8]} 14. e3 {[%emt 0:00:14]} Bc5 {[%emt 0:01:57]} (14... Nxc3 $14 15. Nxc3 Bc5) 15. Nxe4 $1 $16 {[%emt 0:05:04]} Nxe4 {[%emt 0:00:45]} 16. Nc3 {[%emt 0:00:14]} ({White should play} 16. Qc2 $16 Bb4 17. Rd1) 16... Nxc3 $11 {[%emt 0:02:34]} 17. bxc3 {[%emt 0:00:03]} Qf6 {[%emt 0:00:21]} 18. Rb1 {[%emt 0:04:01]} Ba6 {[%emt 0:01:59][%cal Bb7a6,Ba6c4,Bc4a2][%mdl 1056] Black has compensation.} 19. Qc2 {[%emt 0:00:14]} Bc4 $1 {[%emt 0:00:49]} 20. Kh1 {[%emt 0:06:21]} Qa6 {[%emt 0:02:15]} 21. Qa4 {[%emt 0:02:11]} h5 {[%emt 0:04:52]} 22. Ba3 {[%emt 0:06:01]} Bxe3 {[%emt 0:09:05]} 23. Qxd7 {[%emt 0:00:10]} Bxa2 {[%emt 0:00:59]} (23... Bd3 {simplifies} 24. Ra1 Qc4 25. Qc6 Qxc6 26. dxc6 Bc4) 24. Rb2 {[%emt 0:02:32][%cal Bb1b2,Bb2a2,Ba2e2][%mdl 32]} Rad8 {[%emt 0:02:03]} (24... Qc4 $11) 25. Rxe3 $16 {[%emt 0:02:53]} (25. Qxc7 $2 {loses.} Bxf4 $19) 25... Rxd7 {[%emt 0:01:35]} 26. Rxe8+ {[%emt 0:00:06] Black is weak on the dark squares} Kh7 {[%emt 0:00:03]} 27. Rxa2 {[%emt 0:00:21] Threatens to win with Rf2.} Rxd5 {[%emt 0:02:14][%mdl 64] ( -> ...Rd1+). Deflection, Back Rank} 28. h4 {[%emt 0:02:29]} ({Don't go for} 28. Be4+ $2 f5 29. Kg2 (29. Bxd5 $2 Qf1#) (29. Rh8+ $2 Kxh8 30. Kg2 fxe4 $19) 29... fxe4 30. Rxe4 Rd3 $19) 28... Rd1+ {[%emt 0:03:14]} (28... Qb5 $16 29. Rae2 Rd2 30. Rxd2 Qxe8) 29. Kh2 $18 {[%emt 0:00:01]} Qc4 {[%emt 0:01:04] [#]} 30. Rae2 {[%emt 0:00:55]} Ra1 {[%emt 0:00:22]} 31. R8e4 {[%emt 0:02:25]} Qb3 {[%emt 0:00:38]} 32. Bc5 {[%emt 0:00:51] aiming for Re5.} a4 $2 {[%emt 0:00:42]} (32... Ra2 33. Rxa2 Qxa2) 33. Re5 {[%emt 0:01:17]} Kh6 {[%emt 0:03:02]} (33... Ra2 34. Rxh5+ Kg6 35. Rg5+ Kh7 36. Rxa2 Qxa2) 34. Re8 $2 {[%emt 0:01:31]} (34. Bd5 $18 {has better winning chances.}) 34... Ra2 $16 {[%emt 0:00:44]} 35. Rxa2 {[%emt 0:02:09]} Qxa2 {[%emt 0:00:09]} 36. f5 {[%emt 0:00:38][%cal Re8h8]} Kh7 {[%emt 0:00:15] [#] Repels Rh8+} 37. f6 {[%emt 0:00:20]} gxf6 $11 {[%emt 0:00:16]} 38. Bd4 {[%emt 0:00:41]} Qb2 {[%emt 0:01:35]} 39. Bxf6 {[%emt 0:00:27]} a3 {[%emt 0:00:28] ...a2 is the strong threat.} 40. Kh3 {[%emt 0:00:30] White threatens Be4+ and mate.} Kg6 {[%emt 0:00:31]} 41. Bd4 {[%emt 0:00:29] Hoping for Rg8+.} a2 {[%emt 0:01:01]} 42. Rg8+ {[%emt 0:00:20]} Kf5 {[%emt 0:00:05]} 43. Rg5+ {[%emt 0:00:44]} Ke6 {[%emt 0:00:06] Chess con chili.} 44. Re5+ {[%emt 0:00:28]} Kd7 {[%emt 0:00:32]} 45. Rd5+ {[%emt 0:00:15]} Kc8 {[%emt 0:00:35]} 46. c4 {[%emt 0:00:34][%cal Bc3c4,Bc4c5,Bc5c6][%mdl 32]} Qxd4 {[%emt 0:00:15]} 47. Rxd4 {[%emt 0:00:01]} a1=Q {[%emt 0:00:11][%mdl 4096] Endgame KQ-KRB} (47... a1=B $2 48. Rd5 $18) 48. Rd5 {[%emt 0:00:11]} Qf6 {[%emt 0:02:54]} 49. Kh2 {[%emt 0:01:24]} Qg6 {[%emt 0:00:35]} 50. Rg5 {[%emt 0:00:19]} Qh7 {[%emt 0:00:38]} 51. c5 {[%emt 0:00:18]} Kd7 {[%emt 0:00:20]} 52. Rd5+ {[%emt 0:01:00]} Ke6 {[%emt 0:01:58]} 53. c6 {[%emt 0:00:04]} Qh8 {[%emt 0:00:03]} 54. Rd7 {[%emt 0:00:36]} Qe5 {[%emt 0:00:05]} 55. Bd5+ $2 {[%mdl 8192]} (55. Rd8 $15 Qa5 56. Rg8) 55... Qxd5 $1 $19 {[%emt 0:02:39]} 56. Rxd5 {[%emt 0:00:51]} Kxd5 {[%emt 0:00:06]} 57. Kg2 {[%emt 0:00:23]} Kxc6 {[%emt 0:00:31] K3P-KPP} 58. g4 {[%emt 0:00:20]} Kd7 {[%emt 0:00:24]} (58... hxg4 $2 59. h5 $18) 59. gxh5 {[%emt 0:00:07]} Ke8 {[%emt 0:00:03] Black mates.} 60. Kf3 {[%emt 0:00:20]} Kf8 {[%emt 0:00:05]} 61. Ke4 {[%emt 0:01:06]} Kg7 {[%emt 0:00:15] Never resign too early! Ingenious play by Jakab!   Weighted Error Value: White=0.34/Black=0.20 (precise)} 0-1